Cogmind - Beta 15 *** ADVENTURER MODE // 2025.10.07 @ 14:24:27 Player: triibiis Result: Destroyed by Y-45 Defender with Beam Rifle Performance ------------- Evolutions (0) 0 Regions Visited (2) 400 Robots Destroyed (15) 75 Value Destroyed (341) 341 Prototype IDs (0) 0 Alien Tech Used (0) 0 Bonus (0) 0 TOTAL SCORE: 816 Bonus ------- None Cogmind --------- Core Integrity 0/250 Matter 300/300 Energy 159/160 System Corruption 0% Temperature Cool (53) Movement Core (250) Ox4 Location -10/Mines Parts ------- > --- POWER (1) -------- Light Nuclear Core > --- PROPULSION (2) --- (None) > --- UTILITY (2) ------ Medium Storage Unit Visual Processing Unit > --- WEAPON (2) ------- (None) > --- INVENTORY (10) --- Ion Engine Light Ion Engine Wheel Compact Wheel Flight Unit Flight Unit Flight Unit Flight Unit Peak State ------------ > --- POWER ------------ Light Nuclear Core > --- PROPULSION ------- Light Treads Light Treads > --- UTILITY ---------- Medium Storage Unit Visual Processing Unit > --- WEAPON ----------- Medium Laser Plasma Flamer > --- INVENTORY -------- Ion Engine Light Ion Engine Wheel Compact Wheel Flight Unit Flight Unit Flight Unit [Rating: 14] Favorites ----------- Power Ion Engine Engine Ion Engine Power Core Light Nuclear Core Propulsion Light Treads Treads Light Treads Utility Visual Processing Unit Storage Medium Storage Unit Processor Visual Processing Unit Weapon Medium Laser Energy Gun Medium Laser Ballistic Gun Assault Rifle Special Weapon Plasma Flamer Build | -11 -10 -10 ------- Run | Yrd Mat Min Slots Evolved . | . . . Power . | . . . Propulsion . | . . . Utility . | . . . Weapon . | . . . Parts Attached 14 | 7 6 1 Power 3 | 2 1 . Engine 2 | 2 . . Core 1 | . 1 . Reactor . | . . . Propulsion 2 | 2 . . Treads 2 | 2 . . Leg . | . . . Wheel . | . . . Hover . | . . . Flight . | . . . Utility 3 | 1 2 . Device . | . . . Storage 2 | 1 1 . Processor 1 | . 1 . Hackware . | . . . Protection . | . . . Artifact . | . . . Weapon 6 | 2 3 1 Energy Gun 4 | 1 3 . Energy Cannon . | . . . Ballistic Gun 1 | 1 . . Ballistic Cannon . | . . . Launcher . | . . . Special Weapon 1 | . . 1 Impact Weapon . | . . . Slashing Weapon . | . . . Piercing Weapon . | . . . Special Melee Weapon . | . . . Unidentified Prototypes . | . . . Parts Lost 5 | . 1 4 Power . | . . . Propulsion 2 | . . 2 Utility . | . . . Weapon 3 | . 1 2 Highest Loss Streak 4 | . 1 4 To Critical Strikes . | . . . Average Backups 6 | 2 6 7 Power 1 | . 1 2 Propulsion 3 | 1 3 5 Utility . | . . . Weapon . | . . . Tool/Special . | . . . Unused Backups 7 | . . 7 Power 1 | . . 1 Propulsion 6 | . . 6 Utility . | . . . Weapon . | . . . Tool/Special . | . . . Average Slot Usage (%) 93 | . 91 96 Engine 7 | . 11 . Core 6 | . 2 14 Treads 27 | . 28 26 Storage 14 | . 14 14 Processor 8 | . 6 14 Energy Gun 21 | . 23 16 Ballistic Gun 2 | . 4 . Special Weapon 3 | . . 10 Peak Build Rating 14 | 6 10 14 Average Rating 8 | 4 7 12 On Entrance 5 | . 6 10 Naked Turns . | . . . Heaviest Build 20 | 13 19 20 Greatest Support 40 | 40 40 40 Greatest Overweight (x) 6 | . . 6 Average Overweight (x) . | . . . Largest Inventory Capacity 10 | 8 10 10 Average Capacity 8 | 6 8 10 Most Carried 8 | 4 8 8 Average Carried 6 | 2 6 7 Final Capacity 10 | 8 10 10 Final Carried 8 | 4 7 8 Class Distribution -------------------- 100% | Mutant Dominant Class ---------------- Mutant | -10/Materials Mutant | -10/Mines Resources | -11 -10 -10 ----------- Run | Yrd Mat Min Matter Collected 356 | 270 61 25 Remotely . | . . . Salvage Created 468 | . 405 63 Parts 22 | . 18 4 Haulers Intercepted . | . . . Recyclers Shooed 3 | . 1 2 Parts Field Recycled . | . . . Retrieved Matter . | . . . Parts Self-Destructed . | . . . Prevented . | . . . Kills | -11 -10 -10 ------- Run | Yrd Mat Min Combat Hostiles Destroyed 12 | . 8 4 Guns 8 | . 7 1 Cannons 3 | . . 3 AOE 1 | . 1 . Classes Destroyed 6 | . 5 1 Worker 1 | . 1 . Recycler 1 | . 1 . Watcher 1 | . 1 . Swarmer 6 | . 3 3 Grunt 5 | . 5 . Sentry 1 | . . 1 Best Kill Streak 3 | . 3 2 Combat Bots Only 3 | . 3 2 Max Kills in Single Turn 3 | . 3 1 Gunslinging 1 | . 1 . Exploded 1 | . 1 . Melee . | . . . Uniques/NPCs Destroyed . | . . . Combat | -11 -10 -10 -------- Run | Yrd Mat Min Hostile Shots Fired 145 | . 84 61 Missed 50 | . 29 21 Hits 95 | . 55 40 Projectile 95 | . 55 40 Critical Strikes 2 | . 1 1 Damage Taken 927 | . 570 357 Core 256 | . 161 95 Absorbed by Shields . | . . . Ignored by Resistances 276 | . 172 104 Core Remaining (%) 100 | 100 . . Volleys Fired 35 | . 25 10 Largest 2 | . 2 2 Hottest 150 | . 90 150 Shots Fired 68 | . 50 18 Gun 60 | . 50 10 Cannon . | . . . Launcher . | . . . Special 8 | . . 8 Kinetic 7 | . 7 . Thermal 43 | . 25 18 Explosive . | . . . Electromagnetic 18 | . 18 . Robot Hit Streak 17 | . 17 5 Robot Miss Streak 4 | . 4 3 Penetration Max . | . . . Secondary Targets 1 | . 1 . Max Gunslinging Chain 1 | . 1 . Shots Hit Robots 47 | . 38 9 Core Hits 22 | . 17 5 Critical Kills . | . . . Critical Parts Destroyed . | . . . Critical Strikes 7 | . 4 3 Burn 6 | . 3 3 Corrupt 1 | . 1 . Melee Attacks . | . . . Impact . | . . . Slashing . | . . . Piercing . | . . . Sneak Attacks . | . . . Combat Hostiles . | . . . Follow-up Attacks . | . . . Damage Inflicted 729 | . 602 127 Guns 542 | . 494 48 Cannons . | . . . Explosions 108 | . 108 . Melee . | . . . Ramming . | . . . Kinetic 60 | . 60 . Thermal 497 | . 370 127 Explosive . | . . . Electromagnetic 172 | . 172 . Impact . | . . . Slashing . | . . . Piercing . | . . . Highest Corruption . | . . . Average Corruption . | . . . Corruption Purged . | . . . Corruption Blocked . | . . . Overload Shots . | . . . Overflow Damage 24 | . 24 . Projectiles . | . . . Explosions 24 | . 24 . Melee . | . . . Knockbacks . | . . . Impact . | . . . Kinetic . | . . . Secondary . | . . . Self-Inflicted Damage 146 | . 146 . Shots 2 | . 2 . Rammed . | . . . Targets Rammed . | . . . Kicked . | . . . Crushed . | . . . Highest Temperature 378 | . 300 378 Average Temperature 124 | . 101 159 Received Heat Transfer 234 | . 126 108 Effects 3 | . . 3 Interference 3 | . . 3 Siege Activations . | . . . Martial Activations . | . . . Shielding Activations . | . . . Robots Disrupted . | . . . Combat Hostiles . | . . . Robots Corrupted . | . . . Combat Hostiles . | . . . Parts Fried . | . . . Impact Corruptions . | . . . Robots Melted . | . . . Combat Hostiles . | . . . Parts Melted 2 | . 2 . Heat Transferred 2071 | . 1049 1022 Parts Sabotaged . | . . . Parts Stolen . | . . . Parts Stripped . | . . . Power Chain Reactions 1 | . 1 . Alert | -11 -10 -10 ------- Run | Yrd Mat Min Maximum Alert Level . | . . . Low Security (%) 100 | 100 100 100 Level 1 . | . . . Level 2 . | . . . Level 3 . | . . . Level 4 . | . . . Level 5 . | . . . High Security . | . . . Max Security . | . . . Peak Influence 105 | . 105 55 Initial 18 | . . 18 Average 30 | . 42 19 Influence Increases 430 | . 325 105 Destroy 0b10 Robot/C 240 | . 160 80 Destroy 0b10 Robot/NC 15 | . 15 . Destroy Leader 42 | . 32 10 Successful Hack 15 | . 15 . Disable Machine 27 | . 27 . Destroy Structure 31 | . 31 . Lose Combat Pursuer 60 | . 45 15 Influence Decreases 430 | . 270 160 Entered New Map 37 | . . 37 Time Decay 368 | . 260 108 Lost Part 25 | . 10 15 Squads Dispatched 2 | . 2 . Investigation 2 | . 2 . Extermination . | . . . Reinforcement . | . . . Assault . | . . . Garrison . | . . . Intercept . | . . . Searches Triggered . | . . . Construction Impeded . | . . . Haulers Reinforced . | . . . Active Scanning Responses . | . . . Cargo Convoy Interrupts . | . . . Stealth | -11 -10 -10 --------- Run | Yrd Mat Min Distress Signals 2 | . 2 . Communications Jammed . | . . . Distress Signals . | . . . Times Spotted 22 | . 16 6 Peak Tracking Total 4 | . 4 3 Tactical Retreats 4 | . 3 1 Traps | -11 -10 -10 ------- Run | Yrd Mat Min Traps Triggered 1 | . 1 . Indirectly . | . . . Trap Hack Attempts . | . . . Triggered . | . . . Disarmed . | . . . Reprogrammed . | . . . Reused . | . . . Traps Extracted . | . . . Installed . | . . . Triggered . | . . . Machines | -11 -10 -10 ---------- Run | Yrd Mat Min Machines Disabled 3 | . 3 . Max in Single Turn 3 | . 3 . Machines Repaired . | . . . Machines Dismantled . | . . . Machines Sabotaged . | . . . Overloaded Fab Kills . | . . . Hacking | -11 -10 -10 --------- Run | Yrd Mat Min Machines Accessed 4 | . 4 . Terminals 4 | . 4 . Fabricators . | . . . Repair Stations . | . . . Recycling Units . | . . . Scanalyzers . | . . . Garrison Access . | . . . Total Hacks 6 | . 6 . Successful 3 | . 3 . Failed 3 | . 3 . Catastrophic 2 | . 2 . Database Lockouts . | . . . Manual 6 | . 6 . Terminals 6 | . 6 . Fabricators . | . . . Repair Stations . | . . . Recycling Units . | . . . Scanalyzers . | . . . Garrison Access . | . . . Terminal Hacks 3 | . 3 . Level Access Points 1 | . 1 . Branch Access Points 1 | . 1 . Locate Traps 1 | . 1 . Fabricator Hacks . | . . . Repair Station Hacks . | . . . Recycling Unit Hacks . | . . . Scanalyzer . | . . . Garrison Access Hacks . | . . . Unauthorized Hacks . | . . . Terminals . | . . . Fabricators . | . . . Repair Stations . | . . . Recycling Units . | . . . Scanalyzers . | . . . Garrison Access . | . . . Data Cores Recovered . | . . . Used . | . . . Hacking Detections 3 | . 3 . Full Trace Events 2 | . 2 . Feedback Events . | . . . Feedback Blocked . | . . . Robot Schematics Acquired . | . . . Robots Built . | . . . Authchips . | . . . Time . | . . . Total Robot Build Rating . | . . . Part Schematics Acquired . | . . . Parts Built . | . . . Authchips . | . . . Time . | . . . Total Part Build Rating . | . . . Parts Repaired . | . . . Time . | . . . Parts Recycled . | . . . Recycled Matter . | . . . Retrieved Matter . | . . . Retrieved Components . | . . . Parts Scanalyzed . | . . . Part Schematics Acquired . | . . . Parts Damaged . | . . . Bothacking | -11 -10 -10 ------------ Run | Yrd Mat Min Used RIF Installer . | . . . Robots Hacked . | . . . Non-combat . | . . . Combat . | . . . Robot Hacks Applied . | . . . Relay Couplers Released . | . . . Fabnet Peak Effective % . | . . . Robots Rewired . | . . . Allies Hacked . | . . . Hacks Repelled . | . . . Allies | -11 -10 -10 -------- Run | Yrd Mat Min Total Allies . | . . . Largest Group . | . . . Highest-Rated Group . | . . . Highest-Rated Ally . | . . . Total Orders . | . . . Ally Attacks . | . . . Total Damage . | . . . Kills . | . . . Allies Corrupted . | . . . Allies Melted . | . . . Intel | -11 -10 -10 ------- Run | Yrd Mat Min Active Infowar (turns) 513 | . 261 252 Optics 513 | . 261 252 Robot Analysis Total . | . . . Derelict Logs Recovered 1 | . . 1 Drone Launches . | . . . Drone Recoveries . | . . . Exploration | -11 -10 -10 ------------- Run | Yrd Mat Min Turns Passed 975 | 122 584 269 Spaces Moved 525 | 74 307 144 Core 13 | 8 . 5 Treads 512 | 66 307 139 Legs . | . . . Wheels . | . . . Hover . | . . . Flight . | . . . Fastest Speed 50 | 50 160 160 Average Speed 159 | 148 160 163 Slowest Speed 350 | 160 160 350 Overloaded Moves . | . . . Propulsion Burnouts . | . . . Robots Hopped . | . . . Potential Cave-ins . | . . . Cave-ins Triggered . | . . . Exploration Rate (%) 33 | 5 56 39 Regions Visited 2 Branch Regions 1 Pre-discovered Areas . | . . . Known Exits Taken 1 | . 1 . Unknown Exits Taken 1 | 1 . . Scrap Searched 1 | . . 1 Spaces Dug . | . . . Terrain Destroyed 33 | . 33 . Melee . | . . . Projectile . | . . . AOE 33 | . 33 . Terrain Rammed . | . . . Walls Destroyed . | . . . Machines Disabled . | . . . Actions | -11 -10 -10 --------- Run | Yrd Mat Min Total 590 | 83 350 157 Wait 5 | . 5 . Move 523 | 73 306 144 Hop . | . . . Pick Up 8 | 3 4 1 Fast Attach 11 | 6 4 1 Attach 1 | . 1 . Detach . | . . . Swap 2 | 1 1 . Drop 5 | . 4 1 Fire 35 | . 25 10 Melee . | . . . Ram . | . . . Kick . | . . . Crush . | . . . Escape Stasis . | . . . Rewire . | . . . Trap . | . . . Miscellaneous . | . . . Route ------- -11/Scrapyard -10/Materials (discovered 5 exits: *Mat x3 / *Min x2) -10/Mines History --------- Turn | Location | Event 15 | -11/Scrapyard | Discovered new exit (range 16) 123 | -11/Scrapyard | Entered Materials 319 | -10/Materials | Build established: Mutant 324 | -10/Materials | Identified exit to Materials 353 | -10/Materials | Identified exit to Mines 675 | -10/Materials | Core integrity fell below 50% 707 | -10/Materials | Entered Mines 751 | -10/Mines | A weapon hastily lodged in a ceiling crevice suddenly fell to the ground 879 | -10/Mines | Learned 2 Materials zone layouts 956 | -10/Mines | Core integrity fell below 20% 976 | -10/Mines | Destroyed by Y-45 Defender with Beam Rifle Last Messages --------------- Found Seismic Detector. Found 37 Matter. Acquired 25 matter. R-06 Scavenger suffers critical hit (Burn). S-10 Pest destroyed. Acquired Flight Unit. Overheating: System interference. Plasma Flamer temporarily disabled. Visual Processing Unit temporarily disabled. S-10 Pest suffers critical hit (Burn). S-10 Pest destroyed. Acquired derelict log, extracted data. Data stored: Materials zone layouts (x2). K-01 Serf collects debris. Critical hit (Burn: +37). Lgt. Treads destroyed. Y-45 Defender destroyed. Plasma Flamer destroyed. Med. Laser destroyed. Map ----- +----------------------------------------------------+ | | | | | | | | | | | | | | | | | | | | | | | | | ?????????????????????????????????????????????????? | | ?????????????????????????????????????????????????? | | ??????????????????###????????######??????????????? | | ?????????????????## ##??????#"!!"##?????????????? | | ?????????????????# #??????""[!""#?????????????? | | ?????????????????# ##?????? #?????????????? | | ?????????????????# ###???? #??????????????? | | ?????????????????## ##?###++####????????????? | | ??????????????????#### ### ##?????######? | | ?????????????????????## ## #?????# ## | | ??????????????????????# %[ ##????# # | | ??????????????????????## Y ##????# # | | ???????????????????????## ####### # | | ????????????????????????#@ # | | ???????????????????????## ###### ## | | ??????????????????????## ###?????#### ##### # | | ?????????????????????## ##??????????# #???# ## | | ?????????????????????# ##?####??????# #???# #? | | ?????????????????????# #### ##??#### ###?# #? | | ????????????????????## ## #### ### #? | | ???????????????????## % #? | | ???????????????????# #? | | ???????????????????# !%! #####? | | ????????????""" ##### ###%###????? | | ??????????# ####???#### #?# #??????? | | ??????????# ## ##?????????#$ ### ###????? | | ??????????# ??## ???????????# #????? | | ??????????#####????## #???????????# #????? | | ????????????????????###????????????####### #????? | | ??????????????????????????????????????#### #????? | | ?????????????????????????????????????## # #????? | | ?????????????????????????????????????# ##???? | | ?????????????????????????????????????# """ #???? | | ?????????????????????????????????????# """ #???? | | ????????????????????????????????????## """ ##???? | | ???????????????????????????###??????# ##????? | | ??????????????????????????## ####### ##?????? | | ??????????????????????????# ## ####??????? | +----------------------------------------------------+ Best States ------------- Heat Dissipation 25 Energy Generation 14 Energy Capacity 250 Matter Stores 300 Matter Capacity 300 Sight Range 18 Terrain Scan Density 10 Resistance: KI 20 Resistance: TH 20 Resistance: EX 20 Resistance: EM 20 Resistance: I 20 Resistance: S 20 Resistance: P 20 Evasion (%) 40 Recoil Reduction 2 Offensive Hacking 10 Item Schematics ----------------- None Robot Schematics ------------------ None Fabricated ------------ Nothing Repaired ---------- Nothing Alien Tech Used ----------------- None Achievements -------------- None Challenges ------------ None Game ------ Seed ArchitectExplosiveMapper Manual? 0 Play Time 00:10:38 Cumulative 20.4 hours Start 2025.10.07 @ 14:15:26 End 2025.10.07 @ 14:24:27 Sessions 1 Manual Loads 0 Difficulty Adventurer Special Mode None Game No. 56 Rogue 0 Adventurer 56 Explorer 0 Win Type - Total 0 Types 0/0/0/0/0/0/0/0/0/0 Lore% 20 Gallery% 20 Achievement% 21 Wizard Run 0 Options --------- Layout 1 ASCII 0 Keyboard 0 Movement Arrows Keybinds 0 Fullscreen 1 Font 36/Smallcaps Map View 50x43 Zoom Use 0% Tactical HUD 0 Map Filters NONE Filters NONE Steam 1 RUN: dd26f157-9c5c-4dea-b495-05ae00c7a1a2